[Event "Late-Titled-Tuesday-Blitz-April-02-2024"]
[Site "Chess.com"]
[Date "2024.04.02"]
[Round "8"]
[White "CURRUTACO59"]
[Black "HipsterChess22"]
[Result "1/2-1/2"]
[WhiteElo "2251"]
[BlackElo "2187"]
[TimeControl "180+1"]
[EndTime "15:26:44 PDT"]
[Termination "Game drawn by repetition"]

1. Nf3 {[%clk 0:03:00.9]} 1... d5 {[%clk 0:02:58.6]} 2. d4 {[%clk 0:03:00.8]}
2... e6 {[%clk 0:02:57.3]} 3. c4 {[%clk 0:03:00.9]} 3... c6 {[%clk 0:02:56.7]}
4. e3 {[%clk 0:02:59.2]} 4... f5 {[%clk 0:02:55.5]} 5. Bd3 {[%clk 0:02:57.2]}
5... Nf6 {[%clk 0:02:51.8]} 6. O-O {[%clk 0:02:57.2]} 6... Bd6 {[%clk
0:02:47.8]} 7. b3 {[%clk 0:02:57.1]} 7... Qe7 {[%clk 0:02:47.8]} 8. a4 {[%clk
0:02:56.2]} 8... a5 {[%clk 0:02:45.6]} 9. Ba3 {[%clk 0:02:55.8]} 9... Bxa3
{[%clk 0:02:44.5]} 10. Nxa3 {[%clk 0:02:55.4]} 10... O-O {[%clk 0:02:38.8]} 11.
Qc2 {[%clk 0:02:48.9]} 11... b6 {[%clk 0:02:37.4]} 12. Rfc1 {[%clk 0:02:42.7]}
12... Ne4 {[%clk 0:02:36.5]} 13. cxd5 {[%clk 0:02:32.5]} 13... exd5 {[%clk
0:02:35.8]} 14. Ne5 {[%clk 0:02:20.3]} 14... Bb7 {[%clk 0:02:25.9]} 15. f3
{[%clk 0:02:07.4]} 15... Nd6 {[%clk 0:02:22.4]} 16. f4 {[%clk 0:02:02.9]} 16...
g6 {[%clk 0:02:17.5]} 17. Nb1 {[%clk 0:02:00.4]} 17... Rc8 {[%clk 0:02:08.1]}
18. Nd2 {[%clk 0:01:55.6]} 18... Na6 {[%clk 0:02:04.7]} 19. Bxa6 {[%clk
0:01:47.4]} 19... Rxa6 {[%clk 0:02:02.4]} 20. Qb2 {[%clk 0:01:35]} 20... c5
{[%clk 0:01:54.1]} 21. Qa3 {[%clk 0:01:33.1]} 21... Ne4 {[%clk 0:01:26.6]} 22.
Nxe4 {[%clk 0:01:29.6]} 22... dxe4 {[%clk 0:01:24.8]} 23. Rc2 {[%clk 0:01:11.5]}
23... Bd5 {[%clk 0:01:09.9]} 24. Rac1 {[%clk 0:01:08.7]} 24... Ra7 {[%clk
0:01:04.2]} 25. dxc5 {[%clk 0:00:59]} 25... Rac7 {[%clk 0:01:03.8]} 26. b4
{[%clk 0:00:48.2]} 26... axb4 {[%clk 0:00:59.8]} 27. Qxb4 {[%clk 0:00:49.1]}
27... Rxc5 {[%clk 0:00:50]} 28. Rxc5 {[%clk 0:00:43.6]} 28... Rxc5 {[%clk
0:00:46.5]} 29. Rd1 {[%clk 0:00:18.8]} 29... Qc7 {[%clk 0:00:33.7]} 30. h3
{[%clk 0:00:16.8]} 30... Rc1 {[%clk 0:00:29.2]} 31. Qd2 {[%clk 0:00:12.5]} 31...
Rxd1+ {[%clk 0:00:27.5]} 32. Qxd1 {[%clk 0:00:12.4]} 32... Qc5 {[%clk
0:00:25.3]} 33. Kf2 {[%clk 0:00:11.1]} 33... Kg7 {[%clk 0:00:20.3]} 34. Qd2
{[%clk 0:00:10]} 34... Bc6 {[%clk 0:00:17.6]} 35. Qb2 {[%clk 0:00:07.8]} 35...
Kg8 {[%clk 0:00:11.4]} 36. Nxc6 {[%clk 0:00:04.8]} 36... Qxc6 {[%clk 0:00:10.3]}
37. Qb3+ {[%clk 0:00:03.8]} 37... Kg7 {[%clk 0:00:09.8]} 38. Qb2+ {[%clk
0:00:03.8]} 38... Kg8 {[%clk 0:00:09.8]} 39. Qb3+ {[%clk 0:00:04.1]} 39... Kg7
{[%clk 0:00:09.9]} 40. Qb2+ {[%clk 0:00:04.4]} 40... Kg8 {[%clk 0:00:10]}
1/2-1/2

[Event "Late-Titled-Tuesday-Blitz-April-02-2024"]
[Site "Chess.com"]
[Date "2024.04.02"]
[Round "8"]
[White "AlexandreHouhou"]
[Black "Savagelittlemole"]
[Result "0-1"]
[WhiteElo "2365"]
[BlackElo "2503"]
[TimeControl "180+1"]
[EndTime "15:26:48 PDT"]
[Termination "Savagelittlemole won on time"]

1. e4 {[%clk 0:03:00.9]} 1... c5 {[%clk 0:02:59.3]} 2. Nf3 {[%clk 0:03:00.9]}
2... d6 {[%clk 0:02:59.5]} 3. d4 {[%clk 0:03:01.4]} 3... cxd4 {[%clk 0:03:00.4]}
4. Qxd4 {[%clk 0:03:01]} 4... Nf6 {[%clk 0:03:00.5]} 5. c4 {[%clk 0:02:59.1]}
5... Nc6 {[%clk 0:02:59.7]} 6. Qe3 {[%clk 0:02:52.1]} 6... g6 {[%clk 0:02:59.6]}
7. Nc3 {[%clk 0:02:51.9]} 7... Bg7 {[%clk 0:02:59.8]} 8. Be2 {[%clk 0:02:46.2]}
8... O-O {[%clk 0:02:59.8]} 9. O-O {[%clk 0:02:46.4]} 9... Bd7 {[%clk
0:02:52.7]} 10. Rd1 {[%clk 0:02:46]} 10... Rc8 {[%clk 0:02:52.7]} 11. Bd2 {[%clk
0:02:46.4]} 11... Ng4 {[%clk 0:02:50.6]} 12. Qd3 {[%clk 0:02:45.8]} 12... Nge5
{[%clk 0:02:50.5]} 13. Qc2 {[%clk 0:02:43.4]} 13... Nxf3+ {[%clk 0:02:47.8]} 14.
gxf3 {[%clk 0:02:35.2]} 14... Ne5 {[%clk 0:02:46.8]} 15. Nd5 {[%clk 0:02:32.2]}
15... e6 {[%clk 0:02:42.7]} 16. Ne3 {[%clk 0:02:30]} 16... Qh4 {[%clk
0:02:29.6]} 17. Bc3 {[%clk 0:02:26.5]} 17... Qh3 {[%clk 0:02:14.3]} 18. Ng2
{[%clk 0:02:25.7]} 18... Nxc4 {[%clk 0:01:55.7]} 19. Bxc4 {[%clk 0:02:07.8]}
19... Rxc4 {[%clk 0:01:56.6]} 20. Rxd6 {[%clk 0:02:07]} 20... Be5 {[%clk
0:01:45.4]} 21. Rxd7 {[%clk 0:01:50.9]} 21... Qxh2+ {[%clk 0:01:45.1]} 22. Kf1
{[%clk 0:01:50.6]} 22... Qh1+ {[%clk 0:01:45]} 23. Ke2 {[%clk 0:01:50.7]} 23...
Qxa1 {[%clk 0:01:45.7]} 24. Qb3 {[%clk 0:01:31.2]} 24... Bxc3 {[%clk 0:01:23.2]}
25. Qxc4 {[%clk 0:01:11.1]} 25... Qxb2+ {[%clk 0:01:22.6]} 26. Kf1 {[%clk
0:00:48.8]} 26... Qc1+ {[%clk 0:01:14.4]} 27. Ke2 {[%clk 0:00:48.9]} 27... Qc2+
{[%clk 0:01:09.8]} 28. Kf1 {[%clk 0:00:46.7]} 28... Qb1+ {[%clk 0:00:51.9]} 29.
Ke2 {[%clk 0:00:45.7]} 29... Qb2+ {[%clk 0:00:52.5]} 30. Kf1 {[%clk 0:00:45.3]}
30... b5 {[%clk 0:00:53.1]} 31. Qc7 {[%clk 0:00:15.1]} 31... Qb1+ {[%clk
0:00:51.7]} 32. Ke2 {[%clk 0:00:13.9]} 32... Qxa2+ {[%clk 0:00:52.4]} 33. Kf1
{[%clk 0:00:06.4]} 33... Ba5 {[%clk 0:00:50.7]} 34. Qxa7 {[%clk 0:00:03.2]}
34... Qb1+ {[%clk 0:00:47.8]} 35. Ke2 {[%clk 0:00:03.8]} 35... Qc2+ {[%clk
0:00:43.9]} 36. Kf1 {[%clk 0:00:04.4]} 36... Qc1+ {[%clk 0:00:41.6]} 37. Ke2
{[%clk 0:00:04.7]} 37... Qc4+ {[%clk 0:00:42.1]} 38. Ke3 {[%clk 0:00:03.4]}
38... Bb4 {[%clk 0:00:35.6]} 39. Kf4 {[%clk 0:00:03.4]} 39... e5+ {[%clk
0:00:30.9]} 40. Kg3 {[%clk 0:00:03.8]} 40... Bc5 {[%clk 0:00:26.4]} 41. Qc7
{[%clk 0:00:03.7]} 41... Qe6 {[%clk 0:00:24.2]} 42. Nh4 {[%clk 0:00:02.3]} 42...
Bd4 {[%clk 0:00:15.2]} 43. Rd5 {[%clk 0:00:02.1]} 43... Qf6 {[%clk 0:00:14.3]}
44. Ng2 {[%clk 0:00:01.8]} 44... Qg5+ {[%clk 0:00:13.1]} 45. Kh2 {[%clk
0:00:02.5]} 45... Bxf2 {[%clk 0:00:13.3]} 0-1

[Event "Late-Titled-Tuesday-Blitz-April-02-2024"]
[Site "Chess.com"]
[Date "2024.04.02"]
[Round "8"]
[White "Eagle_2019"]
[Black "Franmu14"]
[Result "0-1"]
[WhiteElo "2850"]
[BlackElo "2689"]
[TimeControl "180+1"]
[EndTime "15:27:01 PDT"]
[Termination "Franmu14 won by resignation"]

1. b3 {[%clk 0:03:00.9]} 1... e5 {[%clk 0:02:59.6]} 2. Bb2 {[%clk 0:03:00.7]}
2... Nc6 {[%clk 0:03:00.3]} 3. c4 {[%clk 0:02:54]} 3... Nf6 {[%clk 0:02:56.3]}
4. e3 {[%clk 0:02:45.6]} 4... a6 {[%clk 0:02:56.3]} 5. Nf3 {[%clk 0:02:43.5]}
5... e4 {[%clk 0:02:56.5]} 6. Nd4 {[%clk 0:02:42.8]} 6... Nxd4 {[%clk
0:02:56.7]} 7. Bxd4 {[%clk 0:02:42.2]} 7... d5 {[%clk 0:02:56.9]} 8. Nc3 {[%clk
0:02:39.2]} 8... c6 {[%clk 0:02:54.9]} 9. cxd5 {[%clk 0:02:38.1]} 9... cxd5
{[%clk 0:02:53.2]} 10. Be2 {[%clk 0:02:37.8]} 10... Be6 {[%clk 0:02:52.3]} 11.
O-O {[%clk 0:02:37.1]} 11... Bd6 {[%clk 0:02:51.4]} 12. f3 {[%clk 0:02:34.9]}
12... O-O {[%clk 0:02:47.2]} 13. f4 {[%clk 0:02:34.7]} 13... Rc8 {[%clk
0:02:26.5]} 14. g4 {[%clk 0:02:05.6]} 14... Bc5 {[%clk 0:02:09.3]} 15. g5 {[%clk
0:02:00.2]} 15... Bxd4 {[%clk 0:02:07.5]} 16. exd4 {[%clk 0:01:59.6]} 16... Ne8
{[%clk 0:02:04.3]} 17. Qe1 {[%clk 0:01:47.9]} 17... Nd6 {[%clk 0:02:01.6]} 18.
Qf2 {[%clk 0:01:40.5]} 18... Nf5 {[%clk 0:02:00.2]} 19. Bg4 {[%clk 0:01:38.5]}
19... f6 {[%clk 0:01:52.9]} 20. h4 {[%clk 0:01:34.2]} 20... fxg5 {[%clk
0:01:48.3]} 21. fxg5 {[%clk 0:01:28.9]} 21... Qb6 {[%clk 0:01:42.8]} 22. Bxf5
{[%clk 0:01:28.1]} 22... Rxf5 {[%clk 0:01:41]} 23. Qe3 {[%clk 0:01:28]} 23...
Rcf8 {[%clk 0:01:35.8]} 24. Rxf5 {[%clk 0:01:27.3]} 24... Rxf5 {[%clk
0:01:34.7]} 25. Rf1 {[%clk 0:01:26.7]} 25... Rxf1+ {[%clk 0:01:25.6]} 26. Kxf1
{[%clk 0:01:27.6]} 26... Qd6 {[%clk 0:01:25.7]} 27. Kg2 {[%clk 0:01:24.8]} 27...
b5 {[%clk 0:01:22.5]} 28. Qg3 {[%clk 0:01:24.3]} 28... Qf8 {[%clk 0:01:14.7]}
29. Nd1 {[%clk 0:01:23.5]} 29... Qb4 {[%clk 0:00:58.6]} 30. Qc3 {[%clk
0:01:17.8]} 30... Qd6 {[%clk 0:00:54.9]} 31. Qg3 {[%clk 0:01:11.3]} 31... Qb4
{[%clk 0:00:54.9]} 32. Qf2 {[%clk 0:01:01.8]} 32... Bg4 {[%clk 0:00:49.7]} 33.
Nc3 {[%clk 0:00:56.9]} 33... Bf3+ {[%clk 0:00:48.3]} 34. Kh2 {[%clk 0:00:56.8]}
34... Qa3 {[%clk 0:00:35.4]} 35. Qg3 {[%clk 0:00:51.4]} 35... Qb2 {[%clk
0:00:26.8]} 36. Qb8+ {[%clk 0:00:48.2]} 36... Kf7 {[%clk 0:00:26.7]} 37. Qf4+
{[%clk 0:00:49.1]} 37... Kg6 {[%clk 0:00:24.9]} 38. Kg3 {[%clk 0:00:38.5]} 38...
Qc1 {[%clk 0:00:20.7]} 39. Kf2 {[%clk 0:00:30.3]} 39... Qh1 {[%clk 0:00:19.4]}
40. Qg3 {[%clk 0:00:30.2]} 40... Qc1 {[%clk 0:00:11.8]} 41. Ke3 {[%clk
0:00:30.1]} 41... Qc2 {[%clk 0:00:10.5]} 42. h5+ {[%clk 0:00:24.1]} 42... Kxh5
{[%clk 0:00:06.1]} 43. Nxd5 {[%clk 0:00:21.5]} 43... Qd3+ {[%clk 0:00:05.5]} 44.
Kf4 {[%clk 0:00:21.7]} 44... Qxd2+ {[%clk 0:00:05.9]} 45. Ke5 {[%clk 0:00:21.6]}
45... Qxg5+ {[%clk 0:00:05.9]} 46. Qxg5+ {[%clk 0:00:21.4]} 46... Kxg5 {[%clk
0:00:06.8]} 47. Ne3 {[%clk 0:00:21.6]} 47... Bg4 {[%clk 0:00:05.7]} 48. Nxg4
{[%clk 0:00:20.6]} 48... Kxg4 {[%clk 0:00:06.6]} 49. Kxe4 {[%clk 0:00:21]} 49...
h5 {[%clk 0:00:06.5]} 50. d5 {[%clk 0:00:21.2]} 50... h4 {[%clk 0:00:07.3]} 51.
d6 {[%clk 0:00:21.4]} 51... h3 {[%clk 0:00:08]} 52. d7 {[%clk 0:00:21.7]} 52...
h2 {[%clk 0:00:08.8]} 53. d8=Q {[%clk 0:00:20.7]} 53... h1=Q+ {[%clk 0:00:09.7]}
0-1

[Event "Late-Titled-Tuesday-Blitz-April-02-2024"]
[Site "Chess.com"]
[Date "2024.04.02"]
[Round "8"]
[White "KetiTsatsalashvili"]
[Black "lcmil"]
[Result "0-1"]
[WhiteElo "2411"]
[BlackElo "2296"]
[TimeControl "180+1"]
[EndTime "15:27:06 PDT"]
[Termination "lcmil won by checkmate"]

1. d4 {[%clk 0:03:00.9]} 1... Nf6 {[%clk 0:02:59.4]} 2. Nf3 {[%clk 0:02:56.9]}
2... g6 {[%clk 0:02:58.3]} 3. c4 {[%clk 0:02:56.3]} 3... Bg7 {[%clk 0:02:58.5]}
4. Nc3 {[%clk 0:02:56.7]} 4... O-O {[%clk 0:02:59.1]} 5. e4 {[%clk 0:02:55.1]}
5... d6 {[%clk 0:02:59.7]} 6. Be2 {[%clk 0:02:54]} 6... e5 {[%clk 0:03:00.3]} 7.
O-O {[%clk 0:02:53.7]} 7... Nc6 {[%clk 0:03:00.5]} 8. d5 {[%clk 0:02:53.7]} 8...
Ne7 {[%clk 0:03:00.2]} 9. Nd2 {[%clk 0:02:54.2]} 9... a5 {[%clk 0:02:58.1]} 10.
a3 {[%clk 0:02:49.6]} 10... Nd7 {[%clk 0:02:49.3]} 11. Rb1 {[%clk 0:02:48.6]}
11... f5 {[%clk 0:02:44.8]} 12. b4 {[%clk 0:02:48.2]} 12... Nf6 {[%clk
0:02:38.1]} 13. c5 {[%clk 0:02:46.2]} 13... f4 {[%clk 0:02:30.1]} 14. Nc4 {[%clk
0:02:40.8]} 14... g5 {[%clk 0:02:19.7]} 15. f3 {[%clk 0:02:25.5]} 15... axb4
{[%clk 0:02:17.1]} 16. axb4 {[%clk 0:02:25.6]} 16... h5 {[%clk 0:02:05.7]} 17.
Nb5 {[%clk 0:02:22.9]} 17... Ne8 {[%clk 0:02:00.9]} 18. Bb2 {[%clk 0:02:16.6]}
18... Rf6 {[%clk 0:01:50.5]} 19. Ra1 {[%clk 0:02:15.8]} 19... Rxa1 {[%clk
0:01:45.3]} 20. Qxa1 {[%clk 0:02:16.7]} 20... Rg6 {[%clk 0:01:44.6]} 21. Qa8
{[%clk 0:02:15.7]} 21... g4 {[%clk 0:01:41.5]} 22. Na7 {[%clk 0:02:07.9]} 22...
dxc5 {[%clk 0:01:07.2]} 23. Nxe5 {[%clk 0:01:49.1]} 23... Rg5 {[%clk 0:01:04]}
24. Nxc8 {[%clk 0:01:45.3]} 24... Qxc8 {[%clk 0:00:57]} 25. Qxc8 {[%clk
0:01:44.5]} 25... Nxc8 {[%clk 0:00:57.9]} 26. Nd3 {[%clk 0:01:36.9]} 26... c4
{[%clk 0:00:56.4]} 27. Bxg7 {[%clk 0:01:10.3]} 27... cxd3 {[%clk 0:00:56]} 28.
Bxd3 {[%clk 0:01:11.2]} 28... Kxg7 {[%clk 0:00:48.9]} 29. fxg4 {[%clk
0:01:11.6]} 29... Rxg4 {[%clk 0:00:49.8]} 30. Be2 {[%clk 0:01:05.9]} 30... Rh4
{[%clk 0:00:47.9]} 31. Bf3 {[%clk 0:01:02.1]} 31... Ncd6 {[%clk 0:00:33]} 32.
Re1 {[%clk 0:00:48.6]} 32... Nc4 {[%clk 0:00:27.6]} 33. g3 {[%clk 0:00:46.1]}
33... fxg3 {[%clk 0:00:26.7]} 34. hxg3 {[%clk 0:00:47]} 34... Nd2 {[%clk
0:00:26.8]} 35. Kg2 {[%clk 0:00:39.7]} 35... Rh2+ {[%clk 0:00:26.4]} 36. Kxh2
{[%clk 0:00:34.8]} 36... Nxf3+ {[%clk 0:00:26.7]} 37. Kh3 {[%clk 0:00:34.3]}
37... Nxe1 {[%clk 0:00:27.6]} 38. g4 {[%clk 0:00:33.3]} 38... hxg4+ {[%clk
0:00:26.8]} 39. Kxg4 {[%clk 0:00:34.2]} 39... Nd3 {[%clk 0:00:26.6]} 40. Kf5
{[%clk 0:00:33.9]} 40... Nd6+ {[%clk 0:00:25.4]} 41. Ke6 {[%clk 0:00:31.2]}
41... Nxe4 {[%clk 0:00:23.6]} 42. Kd7 {[%clk 0:00:29.5]} 42... b5 {[%clk
0:00:21.7]} 43. Kxc7 {[%clk 0:00:28.1]} 43... Nxb4 {[%clk 0:00:20.5]} 44. Kb6
{[%clk 0:00:28.5]} 44... Nc3 {[%clk 0:00:20.5]} 45. d6 {[%clk 0:00:25.7]} 45...
Nbd5+ {[%clk 0:00:19.7]} 46. Kc5 {[%clk 0:00:23.4]} 46... Kf7 {[%clk 0:00:14.8]}
47. Kc6 {[%clk 0:00:16.4]} 47... Ke8 {[%clk 0:00:14.1]} 48. d7+ {[%clk
0:00:14.3]} 48... Kd8 {[%clk 0:00:14.3]} 49. Kd6 {[%clk 0:00:14.8]} 49... b4
{[%clk 0:00:14.4]} 50. Kc6 {[%clk 0:00:14.3]} 50... b3 {[%clk 0:00:14.4]} 51.
Kd6 {[%clk 0:00:14.4]} 51... b2 {[%clk 0:00:14.8]} 52. Kc6 {[%clk 0:00:14.9]}
52... b1=Q {[%clk 0:00:14.9]} 53. Kd6 {[%clk 0:00:15.5]} 53... Qg6+ {[%clk
0:00:14]} 54. Kc5 {[%clk 0:00:15.7]} 54... Kxd7 {[%clk 0:00:11.1]} 55. Kd4
{[%clk 0:00:15.8]} 55... Kc6 {[%clk 0:00:10.6]} 56. Ke5 {[%clk 0:00:15]} 56...
Qg5+ {[%clk 0:00:09.2]} 57. Ke6 {[%clk 0:00:14.5]} 57... Qf6# {[%clk 0:00:08.1]}
0-1

[Event "Late-Titled-Tuesday-Blitz-April-02-2024"]
[Site "Chess.com"]
[Date "2024.04.02"]
[Round "8"]
[White "PonyQueen07"]
[Black "steepedgames"]
[Result "0-1"]
[WhiteElo "2237"]
[BlackElo "2515"]
[TimeControl "180+1"]
[EndTime "15:27:06 PDT"]
[Termination "steepedgames won by checkmate"]

1. c4 {[%clk 0:03:00.9]} 1... f5 {[%clk 0:02:59.8]} 2. Nc3 {[%clk 0:03:00.4]}
2... Nf6 {[%clk 0:03:00.3]} 3. g3 {[%clk 0:03:00.3]} 3... e5 {[%clk 0:02:59.8]}
4. Bg2 {[%clk 0:03:00]} 4... g6 {[%clk 0:02:58.9]} 5. Nf3 {[%clk 0:02:59.2]}
5... Nc6 {[%clk 0:02:58.5]} 6. O-O {[%clk 0:02:58.8]} 6... Bg7 {[%clk 0:02:58]}
7. d3 {[%clk 0:02:57.7]} 7... O-O {[%clk 0:02:57.3]} 8. e4 {[%clk 0:02:56]} 8...
d6 {[%clk 0:02:54.8]} 9. Bg5 {[%clk 0:02:54.5]} 9... h6 {[%clk 0:02:54.8]} 10.
Bxf6 {[%clk 0:02:54.3]} 10... Qxf6 {[%clk 0:02:55.7]} 11. Nd5 {[%clk 0:02:54.4]}
11... Qf7 {[%clk 0:02:56.4]} 12. exf5 {[%clk 0:02:53]} 12... gxf5 {[%clk
0:02:53.5]} 13. Nh4 {[%clk 0:02:44.8]} 13... f4 {[%clk 0:02:22.4]} 14. Be4
{[%clk 0:02:22]} 14... Bh3 {[%clk 0:02:17.4]} 15. Bg2 {[%clk 0:02:08.4]} 15...
Bxg2 {[%clk 0:02:15.6]} 16. Kxg2 {[%clk 0:02:05.9]} 16... Nd4 {[%clk 0:02:12.3]}
17. f3 {[%clk 0:01:36.4]} 17... c6 {[%clk 0:02:11.7]} 18. Nc3 {[%clk 0:01:36.2]}
18... Bf6 {[%clk 0:02:04.5]} 19. Kh1 {[%clk 0:01:15.1]} 19... Bxh4 {[%clk
0:02:01.3]} 20. gxh4 {[%clk 0:01:15]} 20... Nf5 {[%clk 0:01:56]} 21. Rg1+ {[%clk
0:01:11.4]} 21... Kh7 {[%clk 0:01:55.5]} 22. Qe1 {[%clk 0:01:00.3]} 22... Rg8
{[%clk 0:01:43.9]} 23. Qf2 {[%clk 0:00:56.3]} 23... Qf6 {[%clk 0:01:37.8]} 24.
h5 {[%clk 0:00:50.1]} 24... Qf7 {[%clk 0:01:31.3]} 25. Rg4 {[%clk 0:00:26.4]}
25... Qxh5 {[%clk 0:01:27.1]} 26. Rag1 {[%clk 0:00:19.6]} 26... Ne3 {[%clk
0:01:12.1]} 27. Rxg8 {[%clk 0:00:14.9]} 27... Rxg8 {[%clk 0:01:13]} 28. Rxg8
{[%clk 0:00:12]} 28... Kxg8 {[%clk 0:01:13.9]} 29. Ne4 {[%clk 0:00:11.9]} 29...
Qg6 {[%clk 0:01:01.7]} 30. Qg1 {[%clk 0:00:11.4]} 30... Qxg1+ {[%clk 0:01:00.3]}
31. Kxg1 {[%clk 0:00:11.7]} 31... Nf5 {[%clk 0:00:54.7]} 32. Kf2 {[%clk
0:00:10]} 32... Kf7 {[%clk 0:00:54.5]} 33. Nc3 {[%clk 0:00:07.5]} 33... b6
{[%clk 0:00:53]} 34. Ne2 {[%clk 0:00:05.7]} 34... Ke6 {[%clk 0:00:49.8]} 35. Nc3
{[%clk 0:00:04.1]} 35... Nd4 {[%clk 0:00:44.2]} 36. Ne4 {[%clk 0:00:03.1]} 36...
d5 {[%clk 0:00:43.4]} 37. cxd5+ {[%clk 0:00:03.1]} 37... cxd5 {[%clk 0:00:44.3]}
38. Nc3 {[%clk 0:00:03.5]} 38... Kd6 {[%clk 0:00:42.1]} 39. Kg2 {[%clk 0:00:03]}
39... Kc5 {[%clk 0:00:41.5]} 40. Nd1 {[%clk 0:00:02.4]} 40... b5 {[%clk
0:00:39.6]} 41. a3 {[%clk 0:00:02.2]} 41... a5 {[%clk 0:00:39.3]} 42. Nc3 {[%clk
0:00:01.9]} 42... b4 {[%clk 0:00:39.7]} 43. axb4+ {[%clk 0:00:02.1]} 43... axb4
{[%clk 0:00:40.6]} 44. Nd1 {[%clk 0:00:02]} 44... Nc2 {[%clk 0:00:34.4]} 45. Nf2
{[%clk 0:00:01.7]} 45... h5 {[%clk 0:00:30.4]} 46. Kh3 {[%clk 0:00:01.8]} 46...
Kd4 {[%clk 0:00:27.9]} 47. Kh4 {[%clk 0:00:02.3]} 47... Ke3 {[%clk 0:00:28.3]}
48. Nd1+ {[%clk 0:00:02.4]} 48... Ke2 {[%clk 0:00:28.7]} 49. Nc3+ {[%clk
0:00:02.3]} 49... bxc3 {[%clk 0:00:28.3]} 50. bxc3 {[%clk 0:00:03.2]} 50... Kxf3
{[%clk 0:00:27.8]} 51. Kxh5 {[%clk 0:00:03.7]} 51... e4 {[%clk 0:00:28.3]} 52.
dxe4 {[%clk 0:00:04.4]} 52... dxe4 {[%clk 0:00:28.7]} 53. c4 {[%clk 0:00:04.5]}
53... e3 {[%clk 0:00:29.2]} 54. c5 {[%clk 0:00:05.1]} 54... Nd4 {[%clk
0:00:29.6]} 55. c6 {[%clk 0:00:05.8]} 55... Nxc6 {[%clk 0:00:29.9]} 56. Kg5
{[%clk 0:00:06.4]} 56... e2 {[%clk 0:00:29.9]} 57. h4 {[%clk 0:00:07.3]} 57...
e1=Q {[%clk 0:00:30.1]} 58. h5 {[%clk 0:00:08.2]} 58... Qe5+ {[%clk 0:00:29.8]}
59. Kg6 {[%clk 0:00:08.5]} 59... Ne7+ {[%clk 0:00:29.5]} 60. Kh7 {[%clk
0:00:08.8]} 60... Nf5 {[%clk 0:00:28.9]} 61. h6 {[%clk 0:00:08.5]} 61... Qe7+
{[%clk 0:00:27.8]} 62. Kg6 {[%clk 0:00:09.4]} 62... Qe6+ {[%clk 0:00:28.2]} 63.
Kh7 {[%clk 0:00:09.6]} 63... Qf7+ {[%clk 0:00:28.1]} 64. Kh8 {[%clk 0:00:10]}
64... Qf8+ {[%clk 0:00:28.2]} 65. Kh7 {[%clk 0:00:10]} 65... Qxh6+ {[%clk
0:00:28.9]} 66. Kg8 {[%clk 0:00:10.9]} 66... Qg7# {[%clk 0:00:29.8]} 0-1

[Event "Late-Titled-Tuesday-Blitz-April-02-2024"]
[Site "Chess.com"]
[Date "2024.04.02"]
[Round "8"]
[White "albi1999"]
[Black "Supelyel"]
[Result "1-0"]
[WhiteElo "2612"]
[BlackElo "2431"]
[TimeControl "180+1"]
[EndTime "15:27:07 PDT"]
[Termination "albi1999 won by resignation"]

1. Nf3 {[%clk 0:03:00.9]} 1... Nf6 {[%clk 0:02:57.1]} 2. c4 {[%clk 0:02:57.4]}
2... d6 {[%clk 0:02:54.9]} 3. Nc3 {[%clk 0:02:55.3]} 3... Nbd7 {[%clk
0:02:52.2]} 4. g3 {[%clk 0:02:48.7]} 4... e5 {[%clk 0:02:50.1]} 5. Bg2 {[%clk
0:02:45.6]} 5... Be7 {[%clk 0:02:42.8]} 6. O-O {[%clk 0:02:44.8]} 6... O-O
{[%clk 0:02:41.9]} 7. d3 {[%clk 0:02:44.8]} 7... c6 {[%clk 0:02:41.6]} 8. b4
{[%clk 0:02:44.5]} 8... a6 {[%clk 0:02:41.8]} 9. a4 {[%clk 0:02:44.2]} 9... h6
{[%clk 0:02:41.8]} 10. Rb1 {[%clk 0:02:44]} 10... Re8 {[%clk 0:02:40.9]} 11. Nd2
{[%clk 0:02:43.3]} 11... Qc7 {[%clk 0:02:41]} 12. b5 {[%clk 0:02:41.7]} 12...
axb5 {[%clk 0:02:41]} 13. axb5 {[%clk 0:02:41.3]} 13... Nc5 {[%clk 0:02:40.9]}
14. Nb3 {[%clk 0:02:26.2]} 14... Ne6 {[%clk 0:02:29.7]} 15. Be3 {[%clk
0:02:07.8]} 15... Bd7 {[%clk 0:02:14.7]} 16. h3 {[%clk 0:02:05.7]} 16... c5
{[%clk 0:02:10.4]} 17. Nd2 {[%clk 0:01:46.5]} 17... Qb6 {[%clk 0:01:13.1]} 18.
f4 {[%clk 0:01:41]} 18... exf4 {[%clk 0:01:06.2]} 19. gxf4 {[%clk 0:01:30.1]}
19... Nd4 {[%clk 0:01:04.2]} 20. Bxd4 {[%clk 0:01:06.5]} 20... cxd4 {[%clk
0:01:01.8]} 21. Nd5 {[%clk 0:01:06.6]} 21... Nxd5 {[%clk 0:01:00.4]} 22. Bxd5
{[%clk 0:01:07.5]} 22... Bxh3 {[%clk 0:00:47.7]} 23. Rf3 {[%clk 0:01:04]} 23...
Bf5 {[%clk 0:00:46.2]} 24. Qf1 {[%clk 0:01:00.1]} 24... Bf6 {[%clk 0:00:40.8]}
25. Kh1 {[%clk 0:00:56.7]} 25... Ra2 {[%clk 0:00:35.6]} 26. Ne4 {[%clk
0:00:54.3]} 26... Bxe4 {[%clk 0:00:33.5]} 27. dxe4 {[%clk 0:00:53.4]} 27... Qc5
{[%clk 0:00:20.6]} 28. Qg2 {[%clk 0:00:48.1]} 28... Kf8 {[%clk 0:00:20.3]} 29.
Bxb7 {[%clk 0:00:45.1]} 29... d3 {[%clk 0:00:20.4]} 30. Rxd3 {[%clk 0:00:42]}
30... Qxc4 {[%clk 0:00:20.8]} 31. Bd5 {[%clk 0:00:41.2]} 31... Qc2 {[%clk
0:00:19.6]} 32. Bxa2 {[%clk 0:00:39.8]} 32... Qxa2 {[%clk 0:00:20.5]} 33. Rdb3
{[%clk 0:00:37.1]} 33... Bd4 {[%clk 0:00:18.5]} 34. b6 {[%clk 0:00:36.7]} 34...
Rb8 {[%clk 0:00:18.7]} 35. b7 {[%clk 0:00:36.8]} 35... Bc5 {[%clk 0:00:19]} 36.
e5 {[%clk 0:00:34.1]} 36... Qa4 {[%clk 0:00:18.1]} 37. e3 {[%clk 0:00:26.4]}
37... dxe5 {[%clk 0:00:16.6]} 38. Qd5 {[%clk 0:00:23.6]} 38... Ba7 {[%clk
0:00:13.6]} 39. Qxe5 {[%clk 0:00:19.5]} 39... Qc6+ {[%clk 0:00:13.5]} 40. Kh2
{[%clk 0:00:15.9]} 40... Qf3 {[%clk 0:00:14.1]} 41. R1b2 {[%clk 0:00:11.3]}
41... Kg8 {[%clk 0:00:14.1]} 42. Qc3 {[%clk 0:00:09.6]} 42... Qh5+ {[%clk
0:00:12.9]} 43. Kg2 {[%clk 0:00:09.7]} 43... Qg4+ {[%clk 0:00:13.5]} 44. Kf2
{[%clk 0:00:10.3]} 44... Qxf4+ {[%clk 0:00:14]} 45. Ke2 {[%clk 0:00:10.1]} 45...
Qg4+ {[%clk 0:00:14.7]} 46. Kd2 {[%clk 0:00:10]} 46... Rd8+ {[%clk 0:00:14.7]}
47. Kc2 {[%clk 0:00:09.7]} 47... Bb8 {[%clk 0:00:14.9]} 48. Kb1 {[%clk 0:00:10]}
48... Rd1+ {[%clk 0:00:13.9]} 49. Ka2 {[%clk 0:00:09.1]} 49... Qa4+ {[%clk
0:00:14.1]} 50. Ra3 {[%clk 0:00:09.2]} 50... Qe4 {[%clk 0:00:12.9]} 51. Qc8+
{[%clk 0:00:09.1]} 51... Kh7 {[%clk 0:00:13.2]} 52. Qc2 {[%clk 0:00:09.7]} 52...
Qxc2 {[%clk 0:00:12.4]} 53. Rxc2 {[%clk 0:00:10.6]} 53... Rd7 {[%clk 0:00:12.8]}
54. Rb3 {[%clk 0:00:10.6]} 54... Ba7 {[%clk 0:00:11.3]} 55. Rc8 {[%clk
0:00:10.9]} 1-0